Cogmind - Beta 10.2 --- EXPLORER MODE // 2020.11.25 @ 14:27:36 // Halloween2020/ForbiddenLore Player: Luigi Panache Result: Destroyed by G-47 Trooper with Particle Gun Performance ------------- Evolutions (2) 1000 Regions Visited (5) 1000 Robots Destroyed (10) 50 Value Destroyed (214) 214 Prototype IDs (0) 0 Alien Tech Used (0) 0 Bonus (200) 200 TOTAL SCORE: 2464 Bonus ------- Pacifist 200 Cogmind --------- Core Integrity 0/550 Matter 300/300 Energy 100/100 System Corruption 0% Temperature Cool (9) Movement Core (150) Ox2 Location -8/Storage Parts ------- > --- POWER (1) -------- (None) > --- PROPULSION (5) --- (None) > --- UTILITY (4) ------ Medium Storage Unit > --- WEAPON (2) ------- (None) > --- INVENTORY (8) ---- (None) Peak State ------------ > --- POWER ------------ (None) > --- PROPULSION ------- (None) > --- UTILITY ---------- Heat Sink Medium Storage Unit Targeting Computer > --- WEAPON ----------- Scythe > --- INVENTORY -------- (None) [Rating: 6] Favorites ----------- Power Light Ion Engine Engine Light Ion Engine Propulsion None Utility Targeting Computer Device Heat Sink Storage Medium Storage Unit Processor Targeting Computer Protection Light Armor Plating Weapon Assault Rifle Ballistic Gun Assault Rifle Slashing Weapon Scythe Build | -11 -10 -10 -9 -8 -8 ------- Run | Scr Mat Min Mat Mat Sto Slots Evolved 5 | . 1 . 2 2 . Power . | . . . . . . Propulsion 3 | . . . 2 1 . Utility 2 | . 1 . . 1 . Weapon . | . . . . . . Parts Attached 8 | 3 . . 3 . 2 Power 1 | . . . . . 1 Engine 1 | . . . . . 1 Core . | . . . . . . Reactor . | . . . . . . Propulsion . | . . . . . . Treads . | . . . . . . Leg . | . . . . . . Wheel . | . . . . . . Hover . | . . . . . . Flight . | . . . . . . Utility 5 | 2 . . 3 . . Device 1 | . . . 1 . . Storage 1 | . . . 1 . . Processor 1 | 1 . . . . . Hackware . | . . . . . . Protection 2 | 1 . . 1 . . Artifact . | . . . . . . Weapon 2 | 1 . . . . 1 Energy Gun . | . . . . . . Energy Cannon . | . . . . . . Ballistic Gun 1 | 1 . . . . . Ballistic Cannon . | . . . . . . Launcher . | . . . . . . Special Weapon . | . . . . . . Impact Weapon . | . . . . . . Slashing Weapon 1 | . . . . . 1 Piercing Weapon . | . . . . . . Special Melee Weapon . | . . . . . . Unidentified Prototypes . | . . . . . . Parts Lost 5 | . . . 1 . 4 Power 1 | . . . . . 1 Propulsion . | . . . . . . Utility 3 | . . . 1 . 2 Weapon 1 | . . . . . 1 Highest Loss Streak 2 | . . . 1 . 2 Average Slot Usage (%) 28 | . 37 37 32 25 20 Device 2 | . . . 1 8 2 Storage 5 | . . . 4 8 8 Processor 8 | . 12 12 10 8 5 Protection 5 | . 12 12 7 . . Ballistic Gun 5 | . 12 12 8 . . Naked Turns . | . . . . . . Heaviest Build 13 | 5 5 5 13 9 13 Greatest Support 3 | 3 3 3 3 3 3 Greatest Overweight (x) 4 | 1 1 1 4 2 4 Average Overweight (x) 1 | . 1 1 1 2 2 Largest Inventory Capacity 8 | 4 4 4 8 8 8 Average Capacity 6 | 4 4 4 5 8 8 Most Carried . | . . . . . . Average Carried . | . . . . . . Final Capacity 8 | 4 4 4 8 8 8 Final Carried . | . . . . . . Class Distribution -------------------- 100% | Hacker-Mutant Dominant Class ---------------- Hacker-Mutant | -10/Materials Hacker-Mutant | -10/Mines Hacker-Mutant | -9/Materials Hacker-Mutant | -8/Materials Hacker-Mutant | -8/Storage Resources | -11 -10 -10 -9 -8 -8 ----------- Run | Scr Mat Min Mat Mat Sto Matter Collected 362 | . . 62 277 . 23 Remotely . | . . . . . . Salvage Created 312 | . . . 232 . 80 Parts 13 | . . . 10 . 3 Haulers Intercepted . | . . . . . . Recyclers Shooed . | . . . . . . Parts Field Recycled . | . . . . . . Retrieved Matter . | . . . . . . Parts Self-Destructed . | . . . . . . Prevented . | . . . . . . Kills | -11 -10 -10 -9 -8 -8 ------- Run | Scr Mat Min Mat Mat Sto Combat Hostiles Destroyed 5 | . . . 5 . . Guns 5 | . . . 5 . . Classes Destroyed 5 | . . . 4 . 1 Worker 4 | . . . . . 4 Operator 1 | . . . 1 . . Grunt 3 | . . . 3 . . Duelist 1 | . . . 1 . . Sentry 1 | . . . 1 . . Best Kill Streak 4 | . . . 3 . 4 Combat Bots Only 2 | . . . 2 . . Max Kills in Single Turn 1 | . . . 1 . 1 Gunslinging . | . . . . . . Exploded . | . . . . . . Melee . | . . . . . . Uniques/NPCs Destroyed . | . . . . . . Combat | -11 -10 -10 -9 -8 -8 -------- Run | Scr Mat Min Mat Mat Sto Damage Taken 1282 | . . . 438 . 844 Core 696 | . . . 140 . 556 Absorbed by Shields . | . . . . . . Core Remaining (%) 88 | 100 . 100 65 . . Volleys Fired 34 | . . . 34 . . Largest 1 | . . . 1 . . Hottest 20 | . . . 20 . . Shots Fired 34 | . . . 34 . . Gun 34 | . . . 34 . . Cannon . | . . . . . . Launcher . | . . . . . . Special . | . . . . . . Kinetic 34 | . . . 34 . . Thermal . | . . . . . . Explosive . | . . . . . . Electromagnetic . | . . . . . . Robot Hit Streak 31 | . . . 31 . . Robot Miss Streak 1 | . . . 1 . . Penetration Max . | . . . . . . Secondary Targets . | . . . . . . Shots Hit Robots 39 | . . . 33 . 6 Core Hits 17 | . . . 13 . 4 Critical Hits 1 | . . . . . 1 Critical Kills 1 | . . . . . 1 Critical Parts Destroyed . | . . . . . . Melee Attacks 6 | . . . . . 6 Impact . | . . . . . . Slashing 6 | . . . . . 6 Piercing . | . . . . . . Sneak Attacks 4 | . . . . . 4 Combat Hostiles . | . . . . . . Follow-up Attacks . | . . . . . . Damage Inflicted 827 | . . . 405 . 422 Guns 405 | . . . 405 . . Cannons . | . . . . . . Explosions . | . . . . . . Melee 422 | . . . . . 422 Ramming . | . . . . . . Kinetic 405 | . . . 405 . . Thermal . | . . . . . . Explosive . | . . . . . . Electromagnetic . | . . . . . . Impact . | . . . . . . Slashing 422 | . . . . . 422 Piercing . | . . . . . . Highest Corruption 2 | . 2 2 . . . Average Corruption 1 | . 1 2 . . . Corruption Purged . | . . . . . . Effects 1 | . . 1 . . . Data Loss (minor) 1 | . . 1 . . . Overload Shots . | . . . . . . Overflow Damage 104 | . . . . . 104 Projectiles . | . . . . . . Explosions . | . . . . . . Melee 104 | . . . . . 104 Knockbacks . | . . . . . . Impact . | . . . . . . Kinetic . | . . . . . . Secondary . | . . . . . . Self-Inflicted Damage . | . . . . . . Shots . | . . . . . . Rammed . | . . . . . . Targets Rammed . | . . . . . . Kicked . | . . . . . . Crushed . | . . . . . . Highest Temperature . | . . . . . . Average Temperature . | . . . . . . Received Heat Transfer 594 | . . . 225 . 369 Siege Activations . | . . . . . . Robots Corrupted . | . . . . . . Combat Hostiles . | . . . . . . Parts Fried . | . . . . . . Impact Corruptions . | . . . . . . Robots Melted . | . . . . . . Combat Hostiles . | . . . . . . Parts Melted . | . . . . . . Heat Transferred . | . . . . . . Parts Sabotaged . | . . . . . . Parts Stolen . | . . . . . . Parts Stripped . | . . . . . . Power Chain Reactions . | . . . . . . Missiles Intercepted . | . . . . . . Alert | -11 -10 -10 -9 -8 -8 ------- Run | Scr Mat Min Mat Mat Sto Peak Influence 200 | . . . 200 75 62 Initial 60 | . . . . 60 22 Average 51 | . . . 91 66 28 Maximum Alert Level 1 | . . . 1 . . Low Security (%) 96 | 100 100 100 91 100 100 Level 1 3 | . . . 8 . . Level 2 . | . . . . . . Level 3 . | . . . . . . Level 4 . | . . . . . . Level 5 . | . . . . . . High Security . | . . . . . . Max Security . | . . . . . . Squads Dispatched 3 | . . . 2 1 . Investigation . | . . . . . . Extermination . | . . . . . . Reinforcement 3 | . . . 2 1 . Assault . | . . . . . . Garrison . | . . . . . . Intercept . | . . . . . . Construction Impeded . | . . . . . . Haulers Reinforced . | . . . . . . Stealth | -11 -10 -10 -9 -8 -8 --------- Run | Scr Mat Min Mat Mat Sto Distress Signals . | . . . . . . Communications Jammed . | . . . . . . Distress Signals . | . . . . . . Times Spotted 21 | . . . 11 1 9 Peak Tracking Total 7 | . . . 3 2 7 Tactical Retreats 1 | . . . . . 1 Traps | -11 -10 -10 -9 -8 -8 ------- Run | Scr Mat Min Mat Mat Sto Traps Triggered 2 | . 2 . . . . Indirectly . | . . . . . . Trap Hack Attempts . | . . . . . . Triggered . | . . . . . . Disarmed . | . . . . . . Reprogrammed . | . . . . . . Reused . | . . . . . . Traps Extracted . | . . . . . . Installed . | . . . . . . Triggered . | . . . . . . Machines | -11 -10 -10 -9 -8 -8 ---------- Run | Scr Mat Min Mat Mat Sto Machines Disabled . | . . . . . . Max in Single Turn . | . . . . . . Machines Sabotaged . | . . . . . . Garrisons Compromised . | . . . . . . Overloaded Fab Kills . | . . . . . . Fab Network Shutdowns . | . . . . . . Hacking | -11 -10 -10 -9 -8 -8 --------- Run | Scr Mat Min Mat Mat Sto Machines Accessed . | . . . . . . Terminals . | . . . . . . Fabricators . | . . . . . . Repair Stations . | . . . . . . Recycling Units . | . . . . . . Scanalyzers . | . . . . . . Garrison Access . | . . . . . . Total Hacks . | . . . . . . Successful . | . . . . . . Failed . | . . . . . . Catastrophic . | . . . . . . Database Lockouts . | . . . . . . Manual . | . . . . . . Terminals . | . . . . . . Fabricators . | . . . . . . Repair Stations . | . . . . . . Recycling Units . | . . . . . . Scanalyzers . | . . . . . . Garrison Access . | . . . . . . Terminal Hacks . | . . . . . . Fabricator Hacks . | . . . . . . Repair Station Hacks . | . . . . . . Recycling Unit Hacks . | . . . . . . Scanalyzer . | . . . . . . Garrison Access Hacks . | . . . . . . Unauthorized Hacks . | . . . . . . Terminals . | . . . . . . Fabricators . | . . . . . . Repair Stations . | . . . . . . Recycling Units . | . . . . . . Scanalyzers . | . . . . . . Garrison Access . | . . . . . . Data Cores Recovered . | . . . . . . Used . | . . . . . . Hacking Detections . | . . . . . . Full Trace Events . | . . . . . . Feedback Events . | . . . . . . Feedback Blocked . | . . . . . . Robot Schematics Acquired . | . . . . . . Robots Built . | . . . . . . Matter . | . . . . . . Time . | . . . . . . Total Robot Build Rating . | . . . . . . Part Schematics Acquired . | . . . . . . Parts Built . | . . . . . . Matter . | . . . . . . Time . | . . . . . . Total Part Build Rating . | . . . . . . Parts Repaired . | . . . . . . Time . | . . . . . . Parts Recycled . | . . . . . . Recycled Matter . | . . . . . . Retrieved Matter . | . . . . . . Retrieved Components . | . . . . . . Parts Scanalyzed . | . . . . . . Part Schematics Acquired . | . . . . . . Parts Damaged . | . . . . . . Bothacking | -11 -10 -10 -9 -8 -8 ------------ Run | Scr Mat Min Mat Mat Sto Used RIF Installer . | . . . . . . Robots Hacked . | . . . . . . Non-combat . | . . . . . . Combat . | . . . . . . Robot Hacks Applied . | . . . . . . Relay Couplers Released . | . . . . . . Robots Rewired . | . . . . . . Allies Hacked . | . . . . . . Hacks Repelled . | . . . . . . Allies | -11 -10 -10 -9 -8 -8 -------- Run | Scr Mat Min Mat Mat Sto Total Allies . | . . . . . . Largest Group . | . . . . . . Highest-Rated Group . | . . . . . . Highest-Rated Ally . | . . . . . . Total Orders . | . . . . . . Ally Attacks . | . . . . . . Total Damage . | . . . . . . Kills . | . . . . . . Allies Corrupted . | . . . . . . Allies Melted . | . . . . . . Intel | -11 -10 -10 -9 -8 -8 ------- Run | Scr Mat Min Mat Mat Sto Robot Analysis Total . | . . . . . . Derelict Logs Recovered . | . . . . . . Drone Launches . | . . . . . . Drone Recoveries . | . . . . . . Exploration | -11 -10 -10 -9 -8 -8 ------------- Run | Scr Mat Min Mat Mat Sto Turns Passed 875 | 24 65 87 374 51 274 Spaces Moved 548 | 23 66 88 238 35 98 Core 548 | 23 66 88 238 35 98 Treads . | . . . . . . Legs . | . . . . . . Wheels . | . . . . . . Hover . | . . . . . . Flight . | . . . . . . Fastest Speed 50 | 50 100 100 50 150 150 Average Speed 126 | 86 100 100 125 150 173 Slowest Speed 250 | 100 100 100 250 150 250 Overloaded Moves . | . . . . . . Propulsion Burnouts . | . . . . . . Robots Hopped . | . . . . . . Cave-ins Triggered . | . . . . . . Exploration Rate (%) 16 | 3 18 35 23 3 15 Regions Visited 5 Branch Regions 2 Pre-discovered Areas . | . . . . . . Known Exits Taken 5 | 1 1 1 1 1 . Unknown Exits Taken . | . . . . . . Scrap Searched . | . . . . . . Spaces Dug . | . . . . . . Terrain Destroyed . | . . . . . . Melee . | . . . . . . Projectile . | . . . . . . AOE . | . . . . . . Terrain Rammed . | . . . . . . Walls Destroyed . | . . . . . . Machines Disabled . | . . . . . . Actions | -11 -10 -10 -9 -8 -8 --------- Run | Scr Mat Min Mat Mat Sto Total 683 | 25 65 87 280 34 192 Wait 90 | . . . 4 . 86 Move 543 | 22 65 87 237 34 98 Hop . | . . . . . . Pick Up . | . . . . . . Fast Attach 8 | 3 . . 3 . 2 Attach . | . . . . . . Detach . | . . . . . . Swap . | . . . . . . Drop 2 | . . . 2 . . Fire 34 | . . . 34 . . Melee 6 | . . . . . 6 Ram . | . . . . . . Kick . | . . . . . . Crush . | . . . . . . Escape Stasis . | . . . . . . Rewire . | . . . . . . Trap . | . . . . . . Miscellaneous . | . . . . . . Route ------- -11/Scrapyard -10/Materials -10/Mines -9/Materials -8/Materials -8/Storage History --------- Turn | Location | Event 4 | -11/Scrapyard | Identified exit to Materials 4 | -11/Scrapyard | Discovered exit to Materials (range 16) 25 | -11/Scrapyard | Entered Materials 25 | -10/Materials | Evolved 1 slot: Utility x1 76 | -10/Materials | Identified exit to Mines 76 | -10/Materials | Discovered exit to Mines (range 15) 90 | -10/Materials | Entered Mines 169 | -10/Mines | Identified exit to Materials 169 | -10/Mines | Discovered exit to Materials (range 8) 177 | -10/Mines | Entered Materials 177 | -9/Materials | Evolved 2 slots: Propulsion x2 314 | -9/Materials | Build established: Hacker-Mutant 529 | -9/Materials | Identified exit to Materials 529 | -9/Materials | Discovered exit to Materials (range 16) 551 | -9/Materials | Entered another Materials area 551 | -8/Materials | Evolved 2 slots: Propulsion x1, Utility x1 551 | -8/Materials | Identified exit to Storage 551 | -8/Materials | Discovered exit to Storage (range 7) 602 | -8/Materials | Entered Storage 813 | -8/Storage | Core integrity fell below 50% 849 | -8/Storage | Core integrity fell below 20% 876 | -8/Storage | Destroyed by G-47 Trooper with Particle Gun Last Messages --------------- 00702_ K-01 Serf destroyed. 00710_ Acquired Lgt. Ion Engine. 00726_ Penetrated by Slug. 00737_ Slug penetrates Wall. 00740_ Penetrated by Slug. 00746_ Scythe destroyed. 00746_ Lgt. Ion Engine destroyed. 00752_ Slug penetrates Wall. 00755_ Penetrated by Slug. 00776_ K-01 Serf collects debris. 00792_ Targeting Computer destroyed. 00796_ Slug penetrates Wall. 00800_ Slug penetrates Door. 00811_ Penetrated by Slug. 00816_ Slug penetrates Wall. 00839_ Penetrated by Slug. 00852_ U-05 Engineer builds a Door. 00857_ U-05 Engineer lays Concrete. 00863_ Penetrated by Slug. 00871_ Slug penetrates Wall. Map ----- +----------------------------------------------------+ | ????????????????????????????????????????????? | | ????????????????????????????????????????????? | | ????????????????????????????????????????????? | | ????????????????????????????????????????????? | | ################################????????????? | | # #????????????? | | # #????????????? | | #????????????? | | ##+############+#########+######????????????? | | ????????? ???# #?????????????? | | """????????"""???# #?????????????? | | ""????????? """"??# #?????????????? | | "??????????? """"??# #?????????????? | | ??????????? ?# #?????????????? | | ??????????? ?# #?????????????? | | ?????????? ?# #?????????????? | | ??????????? ? ???# #?????????????? | | ??????????###???????#####+#####?????????????? | | ????????????????????????# #?????????????????? | | ????????????????????????# #?????????????????? | | ????????????????????????#u#?????????????????? | | ????????????????????????# #?????????????????? | | ????????????????????????# #?????????????????? | | ????????????????????????#w#?????????????????? | | ????????????????????????#h#?????????????????? | | ????????????????????????#@#?????????????????? | | ????????????????????????#g#?????????????????? | | ????????????????????????# #?????????????????? | | ????????????????????????#u ?????????????????? | | ????????????????????????# #?????????????????? | | ????????????????????????# #?????????????????? | | ????????????????????????# #?????????????????? | | ????????????????????????# #?????????????????? | | ????????????????????????# #?????????????????? | | ????????????????????????? ??????????????????? | | ????????????????????????? ??????????????????? | | ????????????????????????? ??????????????????? | | ????????????????????????? ??????????????????? | | ????????????????????????? ??????????????????? | | ????????????????????????? ??????????????????? | | ????????????????????????? ??????????????????? | | ????????????????????????????????????????????? | | ????????????????????????????????????????????? | | ????????????????????????????????????????????? | | ????????????????????????????????????????????? | | ????????????????????????????????????????????? | | ????????????????????????????????????????????? | | ????????????????????????????????????????????? | | ????????????????????????????????????????????? | | ????????????????????????????????????????????? | +----------------------------------------------------+ Best States ------------- Heat Dissipation 41 Energy Generation 10 Energy Capacity 125 Matter Stores 300 Matter Capacity 300 Sight Range 16 Terrain Scan Density 10 Armor Coverage 150 Resistance: KI 35 Resistance: TH 35 Resistance: EX 35 Resistance: EM 35 Resistance: I 35 Resistance: S 35 Resistance: P 35 Evasion (%) 50 Targeting Accuracy 5 Offensive Hacking 20 Item Schematics ----------------- None Robot Schematics ------------------ None Fabricated ------------ Nothing Alien Tech Used ----------------- None Achievements -------------- None Challenges ------------ None Game ------ Seed MappingAngularConverter Manual? 0 Play Time 00:13:17 Cumulative 124.8 hours Start 2020.11.25 @ 13:16:50 End 2020.11.25 @ 14:27:36 Sessions 1 Manual Loads 0 Difficulty Explorer Special Mode Halloween2020/ForbiddenLore Game No. 90 Rogue 31 Adventurer 21 Explorer 38 Win Type - Total 6 Types 6/0/0/0/0/0/0/0/0 Lore% 47 Gallery% 70 Achievement% 57 Wizard Run 0 Options --------- ASCII 0 Keyboard 0 Movement Numpad Keybinds 0 Fullscreen 2 Font 18/Terminus Map View 76x50 Tactical HUD 1 Map Filters NONE Filters NONE Steam 1 RUN: 9c615ad1-9dd6-478b-96ce-3eb7c6d09a58